Cogmind - Beta 15 @@@ ROGUE MODE // 2025.07.21 @ 10:45:02 Player: Minty Result: Self-destructed Performance ------------- Evolutions (4) 2000 Regions Visited (10) 2000 Robots Destroyed (150) 750 Value Destroyed (5585) 5585 Prototype IDs (13) 260 Alien Tech Used (0) 0 Bonus (3335) 3335 TOTAL SCORE: 13930 Bonus ------- High Alert Combat Kills 647 Follower Combat Kills 1673 Entered DSFs 500 Network Hubs Disabled 400 Built Enhanced Grunts 300 A7 Reached Mainframe 300 Friendly Fire -485 Cogmind --------- Core Integrity 552/850 Matter 194/300 Energy 350/350 System Corruption 37% Temperature Cool (16) Movement Immobile (Siege) Location -6/Hub_04(d) Parts ------- > --- POWER (2) -------- Quantum Reactor > --- PROPULSION (4) --- Centrium Heavy Treads Centrium Heavy Treads > --- UTILITY (5) ------ Cooling System Huge Storage Unit Weapon Cycler > --- WEAPON (4) ------- Heavy Machine Gun Heavy Machine Gun Advanced KE Penetrator > --- INVENTORY (25) --- Quantum Reactor Centrium Heavy Treads Multireflex Exoskeleton High-capacity Matter Pod (200) Centrium Medium Armor Plating Improved Hacking Suite Improved Hacking Suite Improved Hacking Suite Improved Hacking Suite Improved System Shield High-powered Tractor Beam Recalibrator Cooled Plasma Cannon Advanced KE Penetrator Heavy Flak Cannon Peak State ------------ > --- POWER ------------ Quantum Reactor Quantum Reactor > --- PROPULSION ------- Centrium Heavy Treads Centrium Heavy Treads > --- UTILITY ---------- Large Storage Unit Improved Salvage Targeting Computer Centrium Medium Armor Plating Hardlight Generator Improved System Restoration Module > --- WEAPON ----------- Heavy Machine Gun Heavy Machine Gun Advanced KE Penetrator Advanced KE Penetrator > --- INVENTORY -------- Quantum Reactor Quantum Reactor Centrium Heavy Treads Cooling System High-capacity Matter Pod Recoil Stabilizer Particle Charger Centrium Medium Armor Plating High-powered Tractor Beam Heavy Plasma Cannon Cooled Plasma Cannon Heavy Machine Gun Improved Grenade Launcher Shock Maul [Rating: 110] Favorites ----------- Power Quantum Reactor Engine Improved Ion Engine Power Core Nuclear Core Reactor Quantum Reactor Propulsion Light Treads Treads Light Treads Leg Aluminum Leg Wheel Wheel Utility Large Storage Unit Device Hardlight Generator Storage Large Storage Unit Processor Improved Salvage Targeting Computer Hackware Improved System Shield Protection Centrium Medium Armor Plating Weapon Heavy Machine Gun Energy Gun Backup Laser III Energy Cannon Ion Cannon Ballistic Gun Heavy Machine Gun Ballistic Cannon Light Cannon Launcher Improved Grenade Launcher Impact Weapon Shock Maul Build | -11 -10 -9 -8 -7 -7 -6 -6 -6 -6 -6 ------- Run | Yrd Mat Mat Mat Fac DSF Fac Ext Cet Arc Hub Slots Evolved 8 | . . 2 2 2 . 2 . . . . Power 1 | . . . . 1 . . . . . . Propulsion 2 | . . . 1 . . 1 . . . . Utility 3 | . . . 1 1 . 1 . . . . Weapon 2 | . . 2 . . . . . . . . Parts Attached 95 | . 9 6 22 4 7 14 16 9 7 1 Power 15 | . . 2 1 1 1 3 3 4 . . Engine 9 | . . 2 1 . . 3 3 . . . Core 2 | . . . . 1 1 . . . . . Reactor 4 | . . . . . . . . 4 . . Propulsion 19 | . 2 1 5 . 2 2 5 2 . . Treads 17 | . 2 1 5 . 2 . 5 2 . . Leg . | . . . . . . . . . . . Wheel 2 | . . . . . . 2 . . . . Hover . | . . . . . . . . . . . Flight . | . . . . . . . . . . . Utility 34 | . 3 . 9 2 4 6 2 1 6 1 Device 14 | . . . 4 1 1 2 1 . 5 . Storage 4 | . 2 . . 1 . . . . . 1 Processor 2 | . . . . . . 1 . . 1 . Hackware 2 | . . . . . 1 1 . . . . Protection 12 | . 1 . 5 . 2 2 1 1 . . Artifact . | . . . . . . . . . . . Weapon 27 | . 4 3 7 1 . 3 6 2 1 . Energy Gun 1 | . . . 1 . . . . . . . Energy Cannon 6 | . 1 1 1 . . 2 1 . . . Ballistic Gun 10 | . 1 . 1 1 . . 4 2 1 . Ballistic Cannon 4 | . 2 1 . . . . 1 . . . Launcher 5 | . . 1 4 . . . . . . . Special Weapon . | . . . . . . . . . . . Impact Weapon 1 | . . . . . . 1 . . . . Slashing Weapon . | . . . . . . . . . . . Piercing Weapon . | . . . . . . . . . . . Special Melee Weapon . | . . . . . . . . . . . Unidentified Prototypes 7 | . . 1 1 . . 2 . 3 . . Corrupted Parts 12 | . . . 1 . 4 . 3 4 . . System Corruption 83 | . . . 10 . 28 . 26 19 . . Parts Lost 21 | . . 1 6 . 2 3 4 . . 5 Power 3 | . . 1 . . . . . . . 2 Propulsion 5 | . . . 2 . . 3 . . . . Utility 4 | . . . . . 1 . 1 . . 2 Weapon 9 | . . . 4 . 1 . 3 . . 1 Highest Loss Streak 5 | . . 1 3 . 2 2 3 . . 5 To Critical Strikes . | . . . . . . . . . . . Average Backups 13 | . 10 14 14 14 14 14 13 13 13 15 Power 1 | . 1 . 1 . . . 1 1 2 2 Propulsion 1 | . 4 3 1 1 1 . . . 1 1 Utility 8 | . 2 6 9 11 11 10 8 6 6 8 Weapon 3 | . 2 4 3 2 1 1 3 4 4 2 Tool/Special . | . . . . . . . . . . . Unused Backups 37 | . 1 6 5 . 1 5 5 2 1 11 Power 2 | . . . 1 . . 1 . . . . Propulsion 4 | . . 2 . . . . . . . 2 Utility 26 | . 1 . 4 . 1 4 5 2 1 8 Weapon 5 | . . 4 . . . . . . . 1 Tool/Special . | . . . . . . . . . . . Average Slot Usage (%) 93 | . 92 99 93 99 97 95 98 88 83 85 Engine 7 | . 14 10 9 7 7 9 13 2 . . Core 1 | . . . . 7 7 2 . . . . Reactor 2 | . . . . . . . . 10 11 12 Treads 19 | . 10 22 25 23 23 23 17 15 13 13 Leg 1 | . 17 . . . . . . . . . Wheel 1 | . . . . . . . 7 . . . Device 11 | . . . 5 14 15 14 20 20 13 16 Storage 7 | . 14 11 9 7 7 6 6 6 6 6 Processor 1 | . . . . . . 1 . . 5 2 Protection 7 | . 6 11 12 7 7 6 6 6 4 6 Energy Gun 1 | . 6 . 2 5 . . . . . . Energy Cannon 7 | . 4 10 9 15 8 9 7 12 . . Ballistic Gun 8 | . 8 . 2 1 7 2 12 6 25 25 Ballistic Cannon 5 | . 8 32 10 . . . . . . . Launcher 4 | . . . 6 7 10 11 3 6 . . Peak Build Rating 110 | . 8 15 27 33 40 51 63 105 110 110 Average Rating 50 | . 7 12 21 32 34 46 55 94 105 108 On Entrance 41 | 6 6 8 15 26 33 40 51 63 102 109 Naked Turns . | . . . . . . . . . . . Heaviest Build 157 | 12 32 43 58 61 71 87 97 107 107 157 Greatest Support 160 | 20 40 40 60 60 60 80 110 160 160 160 Greatest Overweight (x) 8 | . 1 1 1 1 1 7 8 . . . Average Overweight (x) . | . . . . . . . 2 . . . Largest Inventory Capacity 25 | . 15 15 15 15 15 15 15 15 15 25 Average Capacity 15 | . 10 15 15 15 15 15 15 15 15 24 Most Carried 18 | . 15 15 15 15 15 15 15 15 15 18 Average Carried 14 | . 10 14 14 14 14 14 14 14 14 16 Final Capacity 25 | 8 15 15 15 15 15 15 15 15 15 25 Final Carried 17 | 6 15 15 15 15 15 15 15 15 15 17 Class Distribution -------------------- 76% | Scavenger-Tank 10% | Mutant 10% | Tank Dominant Class ---------------- Mutant | -10/Materials Tank | -9/Materials Scavenger-Tank | -8/Materials Scavenger-Tank | -7/Factory Scavenger-Tank | -7/DSF Scavenger-Tank | -6/Factory Scavenger-Tank | -6/Extension Scavenger-Tank | -6/Cetus Scavenger-Tank | -6/Archives Scavenger-Tank | -6/Hub_04(d) Resources | -11 -10 -9 -8 -7 -7 -6 -6 -6 -6 -6 ----------- Run | Yrd Mat Mat Mat Fac DSF Fac Ext Cet Arc Hub Matter Collected 4970 | 200 286 447 1069 . 256 528 744 181 740 519 Remotely 94 | . . . 94 . . . . . . . Salvage Created 6376 | . 395 515 1137 . 656 1236 1078 210 356 793 Parts 298 | . 19 36 54 . 21 56 49 9 24 30 Haulers Intercepted 7 | . 1 3 2 . . . . . . 1 Recyclers Shooed 6 | . 1 1 4 . . . . . . . Parts Field Recycled . | . . . . . . . . . . . Retrieved Matter . | . . . . . . . . . . . Parts Self-Destructed . | . . . . . . . . . . . Prevented . | . . . . . . . . . . . Kills | -11 -10 -9 -8 -7 -7 -6 -6 -6 -6 -6 ------- Run | Yrd Mat Mat Mat Fac DSF Fac Ext Cet Arc Hub Combat Hostiles Destroyed 92 | . 8 10 21 . 6 18 19 2 . 8 Melee 1 | . . . . . . . 1 . . . Guns 21 | . 6 . 1 . . . 6 . . 8 Cannons 30 | . 2 8 7 . . 9 3 1 . . AOE 33 | . . 2 12 . 6 6 7 . . . Classes Destroyed 17 | . 4 5 1 . 3 2 2 . . . Worker 12 | . . 4 4 . . 1 . . . 3 Builder 16 | . . 2 7 . . 4 2 . . 1 Hauler 7 | . 1 3 2 . . . . . . 1 Recycler 5 | . 1 . 3 . . 1 . . . . Mechanic 2 | . . 1 . . . . . . . 1 Operator 12 | . . . . . . 3 . . 9 . Watcher 1 | . . . 1 . . . . . . . Swarmer 9 | . 3 2 . . . . 4 . . . Grunt 51 | . 5 6 14 . 3 12 6 . . 5 Brawler 3 | . . . . . . . 3 . . . Duelist 4 | . . 1 2 . . . . . . 1 Sentry 13 | . . 1 5 . . 2 4 . . 1 Specialist 1 | . . . . . 1 . . . . . Hunter 1 | . . . . . 1 . . . . . Programmer 4 | . . . . . . 3 . . . 1 Heavy 2 | . . . . . 1 1 . . . . Behemoth 2 | . . . . . . . 2 . . . Cetus Guard 2 | . . . . . . . . 2 . . Enhanced Grunt 1 | . . . . . . . . . . 1 Savage 1 | . . . . . . . . 1 . . Butcher 1 | . . . . . . . 1 . . . Best Kill Streak 10 | . 3 6 9 . 3 5 5 1 2 10 Combat Bots Only 4 | . 3 2 4 . 3 4 4 1 . 3 Max Kills in Single Turn 5 | . 1 3 3 . 2 2 3 1 1 5 Gunslinging 1 | . . . . . . . . . . 1 Exploded 3 | . . 2 2 . 2 2 3 . . . Melee 1 | . . . . . . . 1 . . . Uniques/NPCs Destroyed . | . . . . . . . . . . . Combat | -11 -10 -9 -8 -7 -7 -6 -6 -6 -6 -6 -------- Run | Yrd Mat Mat Mat Fac DSF Fac Ext Cet Arc Hub Hostile Shots Fired 539 | . 54 39 102 . 33 79 124 12 3 93 Missed 153 | . 16 10 24 . 10 23 43 4 . 23 Hits 386 | . 38 29 78 . 23 56 81 8 3 70 Melee 7 | . . 2 1 . . . . . . 4 Projectile 379 | . 38 27 77 . 23 56 81 8 3 66 Critical Strikes 19 | . . . 3 . 3 1 5 2 1 4 Part Disruptions 1 | . . . . . . . . . . 1 Damage Taken 6567 | . 435 395 1382 . 398 1004 771 243 55 1884 Core 564 | . 67 61 114 . 24 53 39 36 . 170 Absorbed by Shields 1109 | . . . . . 72 204 536 129 12 156 Reduced by Siege Mode 78 | . . . . . . . . . . 78 Regen/Repaired (Parts) 62 | . . . . . . 62 . . . . Core Remaining (%) 86 | 100 73 84 79 . 96 . . . . . Volleys Fired 292 | . 37 27 64 2 9 36 47 9 30 31 Largest 4 | . 2 4 4 3 4 4 4 2 4 4 Hottest 204 | . 90 158 204 168 160 167 201 195 130 131 Shots Fired 848 | . 71 105 175 6 29 71 141 19 112 119 Gun 386 | . 47 . 23 2 9 4 73 . 112 116 Cannon 375 | . 24 104 118 4 9 46 53 17 . . Launcher 87 | . . 1 34 . 11 21 15 2 . 3 Special . | . . . . . . . . . . . Kinetic 487 | . 42 78 53 . 9 4 73 . 112 116 Thermal 274 | . 29 26 88 6 9 46 53 17 . . Explosive 51 | . . 1 25 . 2 11 7 2 . 3 Electromagnetic 36 | . . . 9 . 9 10 8 . . . Robot Hit Streak 17 | . 7 6 8 . 6 6 17 5 6 12 Robot Miss Streak 8 | . 6 4 3 . 7 4 8 3 7 4 Penetration Max 1 | . . . . . . . . . 1 1 Secondary Targets 5 | . . . . . . . 1 . . 4 Max Gunslinging Chain 1 | . . . . . . . 1 . . 1 Shots Hit Robots 460 | . 39 47 104 . 22 39 84 10 50 65 Core Hits 286 | . 19 22 68 . 23 41 46 8 26 33 Critical Kills 6 | . . . . . . . 2 1 2 1 Critical Parts Destroyed 13 | . . . . . . . . . 4 9 Critical Strikes 26 | . . 3 2 . . . 3 1 6 11 Meltdown 3 | . . . . . . . 2 1 . . Destroy 17 | . . . . . . . . . 6 11 Blast 5 | . . 3 2 . . . . . . . Smash 1 | . . . . . . . 1 . . . Melee Attacks 2 | . . . . . . . 2 . . . Impact 2 | . . . . . . . 2 . . . Slashing . | . . . . . . . . . . . Piercing . | . . . . . . . . . . . Sneak Attacks . | . . . . . . . . . . . Combat Hostiles . | . . . . . . . . . . . Follow-up Attacks . | . . . . . . . . . . . Damage Inflicted 17184 | . 587 1116 3811 . 947 2229 3568 743 1600 2583 Guns 5135 | . 393 . 183 . 142 45 1049 . 1600 1723 Cannons 5270 | . 170 971 1542 . 162 971 1136 318 . . Explosions 6595 | . . 141 2041 . 643 1190 1295 425 . 860 Melee 84 | . . . . . . . 84 . . . Ramming 100 | . 24 4 45 . . 23 4 . . . Kinetic 6198 | . 327 734 578 . 142 45 1049 . 1600 1723 Thermal 4568 | . 236 237 1193 . 162 1214 1208 318 . . Explosive 3353 | . . 141 1354 . 56 376 715 425 . 286 Electromagnetic 2881 | . . . 641 . 587 571 508 . . 574 Impact 84 | . . . . . . . 84 . . . Slashing . | . . . . . . . . . . . Piercing . | . . . . . . . . . . . Highest Corruption 47 | . . 1 11 . 28 2 28 47 47 37 Average Corruption 14 | . . 1 1 . 20 1 9 42 27 16 Corruption Purged 32 | . . . . . . . . . 32 . Corruption Blocked . | . . . . . . . . . . . Effects 137 | . . . 8 . 7 8 17 15 55 27 Message Errors 24 | . . . 3 . 2 3 3 3 8 2 Matter Fused 27 | . . . . . 1 2 5 2 11 6 Heat Flow Errors 14 | . . . . . 1 . 1 2 7 3 Energy Discharges 12 | . . . 1 . 1 . 2 2 4 2 Parts Rejected 1 | . . . 1 . . . . . . . Data Loss (minor) 16 | . . . 2 . 1 2 2 1 8 . Data Loss (major) 7 | . . . . . 1 . . 1 4 1 Misfires 11 | . . . . . . . 2 3 2 4 Alerts 4 | . . . . . . 1 1 . 1 1 Weapon Failures 21 | . . . 1 . . . 1 1 10 8 Overload Shots 8 | . . . . . . 3 3 2 . . Overflow Damage 252 | . . 14 79 . . 91 24 . . 44 Projectiles 50 | . . 14 12 . . . 24 . . . Explosions 202 | . . . 67 . . 91 . . . 44 Melee . | . . . . . . . . . . . Knockbacks 18 | . 2 11 5 . . . . . . . Impact 1 | . 1 . . . . . . . . . Kinetic 16 | . 1 10 5 . . . . . . . Secondary 1 | . . 1 . . . . . . . . Self-Inflicted Damage 742 | . . . 181 . . 308 15 109 . 129 Shots 25 | . . . 11 . . 8 2 2 . 2 Rammed 14 | . 1 1 7 . . 4 1 . . . Targets Rammed 23 | . 5 2 9 . . 6 1 . . . Kicked 4 | . 4 . . . . . . . . . Crushed 5 | . . 1 2 . . 2 . . . . Highest Temperature 460 | . 240 416 460 112 202 341 189 239 436 294 Average Temperature 112 | . 80 149 158 60 69 85 58 82 95 91 Received Heat Transfer 1659 | . 195 129 603 . 160 209 211 . 7 145 Effects 16 | . 1 . 9 . . 3 . . 3 . Shutdowns 5 | . . . 3 . . . . . 2 . Energy Bleed 2 | . . . 2 . . . . . . . Interference 5 | . 1 . 1 . . 3 . . . . Matter Decay 1 | . . . 1 . . . . . . . Short Circuit 1 | . . . 1 . . . . . . . Damage (minor) 2 | . . . 1 . . . . . 1 . Siege Activations 2 | . . . . . . . . . . 2 Total Turns 26 | . . . . . . . . . . 26 Longest Duration 16 | . . . . . . . . . . 16 Martial Activations . | . . . . . . . . . . . Shielding Activations . | . . . . . . . . . . . Robots Disrupted . | . . . . . . . . . . . Combat Hostiles . | . . . . . . . . . . . Robots Corrupted 3 | . . . 1 . . 2 . . . . Combat Hostiles 3 | . . . 1 . . 2 . . . . Parts Fried 16 | . . . 3 . 1 6 2 . . 4 Impact Corruptions . | . . . . . . . . . . . Robots Melted 4 | . . . . . . 1 2 1 . . Combat Hostiles 4 | . . . . . . 1 2 1 . . Parts Melted 10 | . . . 1 . . 3 5 1 . . Heat Transferred 7283 | . 666 444 2246 . 259 1595 1623 450 . . Parts Sabotaged . | . . . . . . . . . . . Parts Stolen . | . . . . . . . . . . . Parts Stripped . | . . . . . . . . . . . Power Chain Reactions 4 | . . . 2 . . 1 1 . . . Alert | -11 -10 -9 -8 -7 -7 -6 -6 -6 -6 -6 ------- Run | Yrd Mat Mat Mat Fac DSF Fac Ext Cet Arc Hub Maximum Alert Level 4 | . . . 2 . 1 2 4 3 2 4 Low Security (%) 53 | . 100 100 81 100 79 72 . . . 17 Level 1 20 | . . . 17 . 20 13 29 . 71 11 Level 2 12 | . . . . . . 13 39 5 28 15 Level 3 7 | . . . . . . . 11 94 . 5 Level 4 5 | . . . . . . . 19 . . 49 Level 5 . | . . . . . . . . . . . High Security . | . . . . . . . . . . . Max Security . | . . . . . . . . . . . Peak Influence 1516 | . 90 164 401 175 213 532 1401 812 462 1516 Initial 780 | . . . 49 175 49 111 235 780 278 74 Average 294 | . 34 72 121 130 119 175 639 743 346 785 Influence Increases 6427 | . 243 336 886 15 184 914 1634 166 322 1727 Destroy 0b10 Robot/C 2740 | . 160 200 420 . 120 360 840 80 80 480 Destroy 0b10 Robot/NC 310 | . 10 50 85 . 10 45 20 5 45 40 Destroy Leader 498 | . 22 36 116 . 20 100 102 . . 102 Allied During Kill 903 | . . . . . . . 433 23 125 322 Successful Hack 151 | . 36 7 20 . . 41 39 . . 8 Disable Machine 795 | . . . 75 15 15 165 90 45 60 330 Anti-Garrison Action 150 | . . . . . . . . . . 150 Destroy Structure 640 | . . 13 125 . 19 143 80 13 12 235 Lose Combat Pursuer 240 | . 15 30 45 . . 60 30 . . 60 Influence Decreases 4962 | . 242 219 619 330 41 647 719 865 804 476 Entered New Map 1821 | . . 1 69 210 21 102 245 615 418 140 Time Decay 2691 | . 242 208 490 120 . 475 374 190 386 206 Lost Part 210 | . . 10 60 . 20 30 40 . . 50 Lost Ally 240 | . . . . . . 40 60 60 . 80 Squads Dispatched 25 | . . . 3 . 1 8 5 . . 8 Investigation 5 | . . . 2 . . 1 2 . . . Extermination 3 | . . . . . . 2 . . . 1 Reinforcement 11 | . . . 1 . 1 4 2 . . 3 Assault 5 | . . . . . . . 1 . . 4 Garrison 1 | . . . . . . 1 . . . . Intercept . | . . . . . . . . . . . Searches Triggered . | . . . . . . . . . . . Construction Impeded 5 | . . . 1 . . 2 2 . . . Haulers Reinforced . | . . . . . . . . . . . Active Scanning Responses . | . . . . . . . . . . . Cargo Convoy Interrupts . | . . . . . . . . . . . Stealth | -11 -10 -9 -8 -7 -7 -6 -6 -6 -6 -6 --------- Run | Yrd Mat Mat Mat Fac DSF Fac Ext Cet Arc Hub Distress Signals 11 | . 3 . 3 . . . 3 1 . 1 Communications Jammed . | . . . . . . . . . . . Distress Signals . | . . . . . . . . . . . Times Spotted 200 | . 14 15 33 . 10 23 48 5 22 30 Peak Tracking Total 10 | . 3 4 4 . 4 4 9 5 1 10 Tactical Retreats 10 | . 1 1 2 . . 2 2 . . 2 Traps | -11 -10 -9 -8 -7 -7 -6 -6 -6 -6 -6 ------- Run | Yrd Mat Mat Mat Fac DSF Fac Ext Cet Arc Hub Traps Triggered 9 | . 1 1 . . 6 1 . . . . Indirectly 7 | . . . . . 6 1 . . . . Trap Hack Attempts . | . . . . . . . . . . . Triggered . | . . . . . . . . . . . Disarmed . | . . . . . . . . . . . Reprogrammed . | . . . . . . . . . . . Reused . | . . . . . . . . . . . Traps Extracted . | . . . . . . . . . . . Installed . | . . . . . . . . . . . Triggered . | . . . . . . . . . . . Machines | -11 -10 -9 -8 -7 -7 -6 -6 -6 -6 -6 ---------- Run | Yrd Mat Mat Mat Fac DSF Fac Ext Cet Arc Hub Machines Disabled 55 | . . . 5 1 1 11 7 3 4 23 Max in Single Turn 14 | . . . 1 1 1 3 2 2 1 14 Garrison Access 1 | . . . . . . . . . . 1 Network Hub 2 | . . . . . . . . . . 2 Energy Cycler 1 | . . . . . . . 1 . . . Machines Repaired . | . . . . . . . . . . . Machines Dismantled . | . . . . . . . . . . . Machines Sabotaged . | . . . . . . . . . . . Overloaded Fab Kills . | . . . . . . . . . . . Hacking | -11 -10 -9 -8 -7 -7 -6 -6 -6 -6 -6 --------- Run | Yrd Mat Mat Mat Fac DSF Fac Ext Cet Arc Hub Machines Accessed 25 | . 6 1 4 1 . 6 4 . 1 2 Terminals 21 | . 6 1 4 1 . 3 4 . . 2 Fabricators 2 | . . . . . . 2 . . . . Repair Stations 1 | . . . . . . 1 . . . . Recycling Units . | . . . . . . . . . . . Scanalyzers . | . . . . . . . . . . . Garrison Access . | . . . . . . . . . . . Total Hacks 74 | . 19 3 12 2 . 16 10 . 1 11 Successful 34 | . 9 2 6 1 . 8 4 . 1 3 Failed 40 | . 10 1 6 1 . 8 6 . . 8 Catastrophic 8 | . 1 . 4 . . 1 1 . . 1 Database Lockouts . | . . . . . . . . . . . Manual 27 | . 5 . 8 . . 8 3 1 . 2 Terminals 66 | . 19 3 12 2 . 9 10 . . 11 Fabricators 5 | . . . . . . 5 . . . . Repair Stations 2 | . . . . . . 2 . . . . Recycling Units . | . . . . . . . . . . . Scanalyzers . | . . . . . . . . . . . Garrison Access . | . . . . . . . . . . . Terminal Hacks 24 | . 8 2 5 1 . 1 3 . 1 3 Record 1 | . . . . . . . . . 1 . Robot Analysis 1 | . 1 . . . . . . . . . Prototype ID Bank 3 | . 2 . . . . . . . . 1 Open Door 2 | . . . . . . . 2 . . . Open DSF 1 | . . . . 1 . . . . . . Branch Access Points 2 | . 1 . 1 . . . . . . . Alert Level 3 | . . 1 2 . . . . . . . Locate Traps 6 | . 3 . . . . . 1 . . 2 Security Status 1 | . . 1 . . . . . . . . Hauler Manifests 2 | . . . 1 . . 1 . . . . Registered Components 1 | . . . 1 . . . . . . . Zone Layout 1 | . 1 . . . . . . . . . Fabricator Hacks 2 | . . . . . . 2 . . . . Network Status 2 | . . . . . . 2 . . . . Repair Station Hacks 2 | . . . . . . 2 . . . . Scan Component 1 | . . . . . . 1 . . . . Repair 1 | . . . . . . 1 . . . . Recycling Unit Hacks . | . . . . . . . . . . . Scanalyzer . | . . . . . . . . . . . Garrison Access Hacks . | . . . . . . . . . . . Unauthorized Hacks 6 | . 1 . 1 . . 3 1 . . . Terminals 4 | . 1 . 1 . . 1 1 . . . Botnet 4 | . 1 . 1 . . 1 1 . . . Fabricators 2 | . . . . . . 2 . . . . Liberate 1 | . . . . . . 1 . . . . Haulers 1 | . . . . . . 1 . . . . Repair Stations . | . . . . . . . . . . . Recycling Units . | . . . . . . . . . . . Scanalyzers . | . . . . . . . . . . . Garrison Access . | . . . . . . . . . . . Data Cores Recovered . | . . . . . . . . . . . Used . | . . . . . . . . . . . Hacking Detections 22 | . 6 1 4 . . 5 4 . . 2 Full Trace Events 7 | . 1 . 3 . . 1 2 . . . Feedback Events 1 | . . . 1 . . . . . . . Corruption 1 | . . . 1 . . . . . . . Feedback Blocked . | . . . . . . . . . . . Robot Schematics Acquired . | . . . . . . . . . . . Robots Built . | . . . . . . . . . . . Authchips . | . . . . . . . . . . . Time . | . . . . . . . . . . . Total Robot Build Rating . | . . . . . . . . . . . Part Schematics Acquired . | . . . . . . . . . . . Parts Built . | . . . . . . . . . . . Authchips . | . . . . . . . . . . . Time . | . . . . . . . . . . . Total Part Build Rating . | . . . . . . . . . . . Parts Repaired 1 | . . . . . . 1 . . . . Time 38 | . . . . . . 38 . . . . Parts Recycled . | . . . . . . . . . . . Recycled Matter . | . . . . . . . . . . . Retrieved Matter . | . . . . . . . . . . . Retrieved Components . | . . . . . . . . . . . Parts Scanalyzed . | . . . . . . . . . . . Part Schematics Acquired . | . . . . . . . . . . . Parts Damaged . | . . . . . . . . . . . Bothacking | -11 -10 -9 -8 -7 -7 -6 -6 -6 -6 -6 ------------ Run | Yrd Mat Mat Mat Fac DSF Fac Ext Cet Arc Hub Used RIF Installer . | . . . . . . . . . . . Robots Hacked . | . . . . . . . . . . . Non-combat . | . . . . . . . . . . . Combat . | . . . . . . . . . . . Robot Hacks Applied . | . . . . . . . . . . . Relay Couplers Released 2 | . . . . . . . . . . 2 Machine Destruction 2 | . . . . . . . . . . 2 Fabnet Peak Effective % . | . . . . . . . . . . . Robots Rewired 7 | . . . . . . . 7 . . . Allies Hacked . | . . . . . . . . . . . Hacks Repelled . | . . . . . . . . . . . Allies | -11 -10 -9 -8 -7 -7 -6 -6 -6 -6 -6 -------- Run | Yrd Mat Mat Mat Fac DSF Fac Ext Cet Arc Hub Total Allies 17 | . . . . . . 3 9 5 . . Largest Group 8 | . . . . . . 3 8 6 6 5 Highest-Rated Group 629 | . . . . . . 60 367 629 629 480 Highest-Rated Ally 159 | . . . . . . 20 159 152 149 96 Total Orders . | . . . . . . . . . . . Ally Attacks 281 | . . . . . . 1 181 16 12 71 Total Damage 7013 | . . . . . . . 3497 393 417 2706 Kills 50 | . . . . . . . 25 3 4 18 Allies Corrupted . | . . . . . . . . . . . Allies Melted . | . . . . . . . . . . . Intel | -11 -10 -9 -8 -7 -7 -6 -6 -6 -6 -6 ------- Run | Yrd Mat Mat Mat Fac DSF Fac Ext Cet Arc Hub Active Infowar (turns) 397 | . . . . . . 397 . . . . Optics 397 | . . . . . . 397 . . . . Robot Analysis Total 1 | . 1 . . . . . . . . . Derelict Logs Recovered . | . . . . . . . . . . . Drone Launches . | . . . . . . . . . . . Drone Recoveries . | . . . . . . . . . . . Exploration | -11 -10 -9 -8 -7 -7 -6 -6 -6 -6 -6 ------------- Run | Yrd Mat Mat Mat Fac DSF Fac Ext Cet Arc Hub Turns Passed 6796 | . 636 531 1280 244 243 1260 872 392 904 434 Spaces Moved 3037 | 1 370 244 604 131 78 547 406 156 295 205 Core . | . . . . . . . . . . . Treads 2478 | . 115 244 604 131 78 515 135 156 295 205 Legs 256 | 1 255 . . . . . . . . . Wheels 303 | . . . . . . 32 271 . . . Hover . | . . . . . . . . . . . Flight . | . . . . . . . . . . . Fastest Speed 120 | 120 120 160 160 160 166 130 130 160 160 160 Average Speed 166 | 120 133 169 167 177 243 196 148 160 160 160 Slowest Speed 250 | 120 190 240 240 240 246 250 200 160 160 160 Overloaded Moves . | . . . . . . . . . . . Propulsion Burnouts . | . . . . . . . . . . . Robots Hopped . | . . . . . . . . . . . Potential Cave-ins 2 | . . . . . . . . . . 2 Cave-ins Triggered . | . . . . . . . . . . . Exploration Rate (%) 44 | 2 59 29 41 4 89 18 59 59 91 35 Regions Visited 10 Branch Regions 4 Pre-discovered Areas . | . . . . . . . . . . . Known Exits Taken 1 | . . . . 1 . . . . . . Unknown Exits Taken 8 | 1 1 1 1 . . 1 1 1 1 . Scrap Searched . | . . . . . . . . . . . Spaces Dug 9 | . . . . . . 9 . . . . Terrain Destroyed 813 | . . 14 154 . 20 167 74 10 13 361 Melee . | . . . . . . . . . . . Projectile 65 | . . . 1 . . 4 17 3 13 27 AOE 748 | . . 14 153 . 20 163 57 7 . 334 Terrain Rammed . | . . . . . . . . . . . Walls Destroyed . | . . . . . . . . . . . Machines Disabled . | . . . . . . . . . . . Actions | -11 -10 -9 -8 -7 -7 -6 -6 -6 -6 -6 --------- Run | Yrd Mat Mat Mat Fac DSF Fac Ext Cet Arc Hub Total 4199 | . 438 299 747 139 112 675 589 284 661 255 Wait 475 | . 1 . 6 . 1 44 22 90 303 8 Move 3027 | . 369 243 603 130 77 546 405 155 294 205 Hop . | . . . . . . . . . . . Pick Up 69 | . 11 10 15 2 2 9 6 4 7 3 Fast Attach 29 | . 3 . 4 . 2 3 8 3 6 . Attach 24 | . 1 3 6 2 2 3 3 1 1 2 Detach 8 | . . . 1 . . 1 3 1 1 1 Swap 94 | . 6 5 21 2 8 15 14 10 10 3 Drop 83 | . 5 9 18 1 5 12 12 11 9 1 Fire 292 | . 37 27 64 2 9 36 47 9 30 31 Melee 2 | . . . . . . . 2 . . . Ram 1 | . . . . . . . 1 . . . Kick 4 | . 4 . . . . . . . . . Crush 18 | . 1 2 9 . . 6 . . . . Escape Stasis 6 | . . . . . 6 . . . . . Rewire 67 | . . . . . . . 66 . . 1 Trap . | . . . . . . . . . . . Miscellaneous . | . . . . . . . . . . . Route ------- -11/Scrapyard -10/Materials (discovered 4 exits: *Mat x2 / *Min x2) -9/Materials (discovered 2 exits: *Mat / [*Min]) -8/Materials -7/Factory -7/DSF -6/Factory -6/Extension (discovered 3 exits: [*Fac x2] / *Cet) -6/Cetus -6/Archives (discovered 3 exits: [*Fac] / *Hub x2) -6/Hub_04(d) History --------- Turn | Location | Event 1 | -11/Scrapyard | Discovered new exit (range 0) 1 | -11/Scrapyard | Entered Materials 85 | -10/Materials | Identified exit to Mines 122 | -10/Materials | Met 8R-AWN 231 | -10/Materials | Discovered new exit (range 11) 318 | -10/Materials | Build established: Mutant 369 | -10/Materials | Discovered new exit (range 14) 637 | -10/Materials | Entered another Materials area 637 | -9/Materials | Evolved 2 slots: Weapon x2 874 | -9/Materials | Discovered new exit (range 16) 938 | -9/Materials | Build established: Tank 1132 | -9/Materials | Discovered new exit (range 15) 1168 | -9/Materials | Entered another Materials area 1168 | -8/Materials | Evolved 2 slots: Propulsion x1, Utility x1 1481 | -8/Materials | Build established: Scavenger-Tank 1658 | -8/Materials | Lost 3 parts (1n2w) 2079 | -8/Materials | Discovered new exit (range 5) 2390 | -8/Materials | System corruption reached 10% 2448 | -8/Materials | Entered Factory 2448 | -7/Factory | Evolved 2 slots: Power x1, Utility x1 2692 | -7/Factory | Identified exit to DSF 2692 | -7/Factory | Entered DSF 2748 | -7/DSF | Additional patrols routed to DSF 2775 | -7/DSF | System corruption reached 10% 2883 | -7/DSF | Discovered new exit (range 14) 2935 | -7/DSF | Entered Factory 2935 | -6/Factory | Evolved 2 slots: Propulsion x1, Utility x1 3484 | -6/Factory | Repaired Nuclear Core 4110 | -6/Factory | Garrison activated, responded to threat 4163 | -6/Factory | Discovered new exit (range 5) 4195 | -6/Factory | Entered Extension 4207 | -6/Extension | Disrupted transfer network 4246 | -6/Extension | Rescued a captive Derelict 4299 | -6/Extension | Rescued A7 4312 | -6/Extension | Energy Cycler disabled 4313 | -6/Extension | Rescued a captive Derelict 4316 | -6/Extension | Rescued a captive Derelict 4317 | -6/Extension | Rescued a captive Derelict 4319 | -6/Extension | Rescued a captive Derelict 4320 | -6/Extension | Rescued a captive Derelict 4320 | -6/Extension | Rescued a captive Derelict 4385 | -6/Extension | Lost 3 parts (1u2w) 4712 | -6/Extension | Spotted B-75 Beast 4751 | -6/Extension | Spotted B-75 Beast 4757 | -6/Extension | Destroyed B-75 Beast 4773 | -6/Extension | Destroyed B-75 Beast 4804 | -6/Extension | System corruption reached 10% 4815 | -6/Extension | Discovered new exit (range 14) 4895 | -6/Extension | First assault squad dispatched 5032 | -6/Extension | Discovered new exit (range 16) 5032 | -6/Extension | Discovered new exit (range 16) 5067 | -6/Extension | Entered Cetus 5067 | -6/Cetus | Accompanied by 5 allies (A7) 5072 | -6/Cetus | Acquired a Cetus Manufacturing Module code from A7 5088 | -6/Cetus | Spotted Cetus Guard 5089 | -6/Cetus | Spotted Cetus Guard 5090 | -6/Cetus | Destroyed Cetus Guard 5091 | -6/Cetus | Spotted Cetus Guard 5091 | -6/Cetus | Spotted Cetus Guard 5106 | -6/Cetus | Allies destroyed Cetus Guard 5114 | -6/Cetus | Destroyed Cetus Guard 5117 | -6/Cetus | Allies destroyed Cetus Guard 5132 | -6/Cetus | Lost 3 allies 5135 | -6/Cetus | System corruption reached 30% 5246 | -6/Cetus | Started Cetus Manufacturing Module 5271 | -6/Cetus | Manufactured an Enhanced Grunt 5296 | -6/Cetus | Manufactured an Enhanced Grunt 5321 | -6/Cetus | Manufactured an Enhanced Grunt 5346 | -6/Cetus | Manufactured an Enhanced Grunt 5371 | -6/Cetus | Manufactured an Enhanced Grunt 5377 | -6/Cetus | Escorted A7 to Cetus Mainframe 5428 | -6/Cetus | Discovered new exit (range 16) 5459 | -6/Cetus | Entered Archives 5459 | -6/Archives | Accompanied by 6 allies (A7) 5464 | -6/Archives | Received a hacking code to weaken MAIN.C 5761 | -6/Archives | Discovered new exit (range 13) 5823 | -6/Archives | Discovered new exit (range 15) 5939 | -6/Archives | Discovered new exit (range 15) 6272 | -6/Archives | Unable to access archive contents 6363 | -6/Archives | Entered Hub_04(d) 6363 | -6/Hub_04(d) | Accompanied by 5 allies 6581 | -6/Hub_04(d) | Network Hub disabled 6581 | -6/Hub_04(d) | Network Hub disabled 6703 | -6/Hub_04(d) | Disrupted transfer network 6713 | -6/Hub_04(d) | First assault squad dispatched 6777 | -6/Hub_04(d) | Spotted Lightning 6780 | -6/Hub_04(d) | Spotted Lightning 6781 | -6/Hub_04(d) | Spotted Lightning 6784 | -6/Hub_04(d) | Spotted B-75 Beast 6785 | -6/Hub_04(d) | Spotted Lightning 6785 | -6/Hub_04(d) | Spotted Lightning 6785 | -6/Hub_04(d) | Spotted Lightning 6797 | -6/Hub_04(d) | Self-destructed Last Messages --------------- 06788_ Backup Mainframe disabled. 06788_ EMDS Slug penetrates Wall. 06790_ Penetrated by EMDS Slug. 06791_ EMDS Slug penetrates Wall. 06791_ Penetrated by EMDS Slug. 06792_ System corrupted: Hvy. Machine Gun jammed. 06792_ Slug penetrates Wall. 06792_ Grenade intercepted. 06792_ EMDS Slug penetrates Backup Mainframe. 06794_ Penetrated by EMDS Slug. 06794_ Hardlight Generator destroyed. 06794_ Penetrated by EMDS Slug. 06794_ Quantum Reactor destroyed. 06795_ System corrupted: Hvy. Machine Gun jammed. 06795_ Slug penetrates Lightning. 06796_ Penetrated by EMDS Slug. 06796_ Imp. Grenade Launcher destroyed. 06796_ Penetrated by EMDS Slug. 06796_ Centrium Medium Armor Plating destroyed. 06796_ EMDS Slug penetrates Wall. Map ----- +----------------------------------------------------+ | ?????????????????????????????????????????????????? | | ?????????????????????????????????????????????????? | | ?????????????????????????????????????????????????? | | ?????????????????????????????????????????????????? | | ?????????????????????????????????????????????????? | | ?????????????????????????????????????????????????? | | ?????????????????????????????????????????????????? | | ?????????????????????????????????????????????????? | | ?????????????????????????????????????????????????? | | ?????????????????????????????????????????????????? | | ?????????????????????????????????????????????????? | | ?????????????????????????????????????????????????? | | ????????????????????????????""???????????????????? | | ??????????????????????####??""""?????????????????? | | ?????????????????????? ? ??????????????????? | | ??????????????????????? ? ??????????????????? | | ??????????????#???????? ? ???????????????????? | | ??????????????? ??????? # !???????????????????? | | ??????????????? ?????h # ###?????????????????? | | ???????????????""" ????# h ????????????????? | | ???????????????"T ??## """ "???????????????? | | ????????????# """ ?# hh """" """?????????????? | | ????????????# # """" """"????????????? | | ???????????????? BB h """ #??????????? | | ???????????????????? BB ; ????????? | | ???????????????????????# @% hi ! #??????????? | | ??????????????????????###/;# #???????????????? | | ??????????????????????# %H# ######### #??????? | | ??????????????????????# + % #??????? | | ??????????????????????# ! # #??????? | | ??????????????????????# ## ######## #??????? | | ??????????????????????# * ## #???##?????????????? | | ??????????????????????####### #??? ?????????????? | | ????????????????????????????# #??? ?????????????? | | ????????????????????????????# #??? ??????????????? | | ?????????????????????????#### #?# ?? ??????????? | | ?????????????????????????#""#*###* ?"""??????????? | | ?????????????????????????# =%%%## """??????????? | | ???????????????????####### !%![ + """?#?#??????? | | ?????????????????#! " ==%%## """"# #??????? | | ?????????????????# """" # [ "# "#####???? | | ??????????????????? """"?# * "# = # ####? | | ????????????????????"""??# ""#####+%# """#? | | ??????????###????????"?" # "#? | | ?????????? ??! ? ???? + #? | | ?????? ???" ?! ?????# "" "#? | | ?????# # "T ? ?????# "T " # #? | | ?????# /""" ? ?????# "" # "##?? | | ?????# #%" ? ?????# [|#######??? | | ?????# #" # ?????# ] *%[ #???? | +----------------------------------------------------+ Best States ------------- Heat Dissipation 59 Energy Generation 45 Energy Capacity 600 Matter Stores 300 Matter Capacity 300 Sight Range 20 Terrain Scan Density 10 Armor Coverage 450 Weapon Cycling 15 Evasion (%) 55 Recoil Reduction 7 Particle Charging 15 Salvage Targeting 2 Defensive Hacking 12 Item Schematics ----------------- None Robot Schematics ------------------ None Fabricated ------------ Nothing Repaired ---------- Nuclear Core | 17% | -6/Factory Alien Tech Used ----------------- None Achievements -------------- None Challenges ------------ None Game ------ Seed UltimateElectronBrace Manual? 0 Play Time 00:48:58 Cumulative 1148.1 hours Start 2025.07.21 @ 09:55:35 End 2025.07.21 @ 10:45:02 Sessions 1 Manual Loads 0 Difficulty Rogue Special Mode None Game No. 1414 Rogue 1130 Adventurer 124 Explorer 160 Win Type - Total 52 Types 38/0/8/4/1/0/0/1/0/0 Lore% 92 Gallery% 88 Achievement% 81 Wizard Run 0 Options --------- Layout 0 ASCII 0 Keyboard 1 Movement Numpad Keybinds 0 Fullscreen 2 Font 18/X11 Map View 76x50 Zoom Use 0% Tactical HUD 1 Map Filters NONE Filters NONE Steam 1 RUN: 77cc0484-943e-4675-b1a9-d9b13931a3cb